bitfinex-derivatives/quotes_BNBF0:USTF0_20251027
["timestamp","ask_amount","ask_price","bid_price","bid_amount"]
[1761558543000,1.2931272,1157.2,1155.9,0.53255548]
[1761558543304,1.2931272,1157.2,1155.8,0.15046404]
[1761558543599,1.2931272,1157.2,1155.9,0.53260763]
[1761558543900,1.2931272,1157.2,1155.8,0.15046404]
[1761558544103,1.2931272,1157.2,1155.9,0.53199416]
[1761558544300,1.2931272,1157.2,1156.0,0.53207803]
[1761558544503,1.2931272,1157.2,1155.8,0.15046404]
[1761558544709,1.2931272,1157.2,1155.9,0.53204702]
[1761558544905,1.2931272,1157.2,1156.0,0.53204702]
[1761558545105,1.2931272,1157.2,1155.8,0.15046404]
[1761558545302,1.2931272,1157.2,1155.9,0.53204658]
[1761558545502,1.2931272,1157.2,1155.8,0.15046404]
[1761558545706,1.2931272,1157.2,1155.9,0.53214785]
[1761558545906,1.2931272,1157.2,1156.0,0.53214785]
[1761558546108,1.2931272,1157.2,1155.8,0.15046404]
[1761558546308,1.2931272,1157.2,1155.9,0.53214342]
[1761558546503,1.2931272,1157.2,1156.0,0.53214342]
[1761558546706,1.2931272,1157.2,1155.8,0.15046404]
[1761558546908,1.2931272,1157.2,1155.9,0.53245256]
[1761558547204,1.2931272,1157.2,1156.0,0.53245256]
[1761558547404,1.2931272,1157.2,1155.8,0.15046404]
[1761558547608,1.2931272,1157.2,1155.9,0.5324388]
[1761558547909,1.2931272,1157.2,1156.0,0.5324388]
[1761558548208,1.2931272,1157.3,1155.8,0.15046404]
[1761558548404,1.2931272,1157.3,1155.9,0.5324116]
[1761558548605,1.2931272,1157.3,1156.0,0.5324116]
[1761558548806,1.2931272,1157.3,1155.8,0.15046404]
[1761558549011,1.2931272,1157.3,1155.9,0.53240362]
[1761558549206,1.2931272,1157.3,1156.0,0.53240362]
[1761558549409,1.2931272,1157.3,1155.8,0.15046404]
[1761558549609,1.2931272,1157.3,1155.9,0.53239744]
[1761558549809,1.2931272,1157.4,1156.0,0.53239744]
[1761558550009,1.2931272,1157.4,1156.1,0.53239744]
[1761558550211,1.2931272,1157.4,1155.8,0.79214784]
[1761558550509,1.2931272,1157.4,1155.9,0.53220312]
[1761558550710,1.2931272,1157.4,1156.0,0.53220312]
[1761558550905,1.2931272,1157.4,1156.1,0.53220312]
[1761558551210,1.2931272,1157.7,1156.2,0.53220312]
[1761558551510,1.2931272,1157.7,1156.3,0.53220312]
[1761558551709,1.2931272,1157.7,1156.4,0.53220312]
[1761558551908,1.2931272,1157.7,1155.9,0.6416838]
[1761558552109,1.2931272,1157.7,1156.0,0.53176862]
[1761558552304,1.2931272,1157.7,1156.1,0.53176862]
[1761558552509,1.2931272,1157.8,1156.2,0.53176862]
[1761558552710,1.2931272,1157.8,1156.3,0.53176862]
[1761558553010,1.2931272,1157.8,1156.4,0.53176862]
[1761558553310,1.2931272,1157.8,1156.0,0.6416838]
[1761558553508,1.2931272,1157.8,1156.1,0.53152174]
[1761558553708,1.2931272,1157.9,1156.2,0.53152174]
[1761558553907,1.2931272,1157.9,1156.3,0.53152174]
[1761558554107,1.2931272,1157.9,1156.4,0.53152174]
[1761558554306,1.2931272,1157.9,1156.5,0.53152174]
[1761558554510,1.2931272,1158.1,1156.6,0.53152174]
[1761558554709,1.2931272,1158.1,1156.1,0.6416838]
[1761558555010,1.2931272,1158.1,1156.2,0.53126166]
[1761558555210,1.2931272,1158.2,1156.3,0.53126166]
[1761558555407,1.2931272,1158.2,1156.4,0.53126166]
[1761558555709,1.2931272,1158.1,1156.5,0.53126166]
[1761558555910,1.2931272,1158.1,1156.6,0.53126166]
[1761558556112,1.2931272,1158.1,1156.1,0.6416838]
[1761558556412,1.2931272,1158.1,1156.2,0.53100835]
[1761558556610,1.2931272,1158.1,1156.3,0.53100835]
[1761558556808,1.2931272,1158.1,1156.4,0.53100835]
[1761558557110,1.2931272,1158.1,1156.5,0.53100835]
[1761558557310,1.2931272,1158.1,1156.6,0.53100835]
[1761558557511,1.2931272,1158.1,1156.1,0.6416838]
[1761558557710,1.2931272,1158.1,1156.2,0.53088326]
[1761558557910,1.2931272,1158.1,1156.3,0.53088326]
[1761558558110,1.2931272,1158.1,1156.4,0.53088326]
[1761558558310,1.2931272,1158.0,1156.5,0.53088326]
[1761558558515,1.2931272,1158.0,1156.6,0.53088326]
[1761558558714,1.2931272,1158.0,1156.2,0.6416838]
[1761558558916,1.2931272,1158.0,1156.3,0.53086289]
[1761558559117,1.2931272,1158.0,1156.4,0.53086289]
[1761558559412,1.2931272,1158.0,1156.2,0.6416838]
[1761558559413,1.2931272,1158.0,1156.5,0.53086289]
[1761558559611,1.2931272,1158.0,1156.6,0.53086289]
[1761558559814,1.2931272,1158.0,1156.2,0.6416838]
[1761558560014,1.2931272,1158.0,1156.3,0.53076603]
[1761558560212,1.2931272,1158.0,1156.4,0.53076603]
[1761558560414,1.2931272,1158.0,1156.5,0.53076603]
[1761558560612,1.2931272,1158.0,1156.6,0.53076603]
[1761558560813,1.2931272,1158.0,1156.2,0.6416838]
[1761558561018,1.2931272,1158.0,1156.3,0.53064095]
[1761558561214,1.2931272,1158.0,1156.4,0.53064095]
[1761558561419,1.2931272,1158.1,1156.5,0.53064095]
[1761558561618,1.2931272,1158.2,1156.6,0.53064095]
[1761558561822,1.2931272,1158.2,1156.1,0.6416838]
[1761558562020,1.2931272,1158.2,1156.2,0.53056186]
[1761558562217,1.2931272,1158.2,1156.1,0.6416838]
[1761558562218,1.2931272,1158.2,1156.3,0.53056186]
[1761558562420,1.2931272,1158.2,1156.4,0.53056186]
[1761558562618,1.2931272,1158.2,1156.5,0.53056186]
[1761558562821,1.2931272,1158.2,1156.6,0.53056186]
[1761558563021,1.2931272,1158.2,1156.1,0.6416838]
[1761558563222,1.2931272,1158.2,1156.2,0.53027786]
[1761558563421,1.2931272,1158.2,1156.3,0.53027786]
[1761558563619,1.2931272,1158.2,1156.4,0.53027786]
[1761558563820,1.2931272,1158.2,1156.5,0.53027786]
[1761558564019,1.2931272,1158.2,1156.6,0.53027786]
[1761558564327,1.2931272,1158.3,1156.1,0.6416838]
[1761558564624,1.2931272,1158.2,1156.2,0.5299509]
[1761558564824,1.2931272,1158.2,1156.3,0.5299509]
[1761558565020,1.2931272,1158.2,1156.4,0.5299509]
[1761558565224,1.2931272,1158.2,1156.5,0.5299509]
[1761558565424,1.2931272,1158.2,1156.1,0.6416838]
[1761558565725,1.2931272,1157.9,1156.2,0.52990632]
[1761558566025,1.2931272,1157.9,1156.3,0.52990632]
[1761558566321,1.2931272,1157.9,1156.4,0.52990632]
[1761558566621,1.2931272,1157.9,1156.0,0.6416838]
[1761558566822,1.2931272,1157.9,1156.1,0.52995096]
[1761558567024,1.2931272,1157.8,1156.2,0.52995096]
[1761558567220,1.2931272,1158.1,1156.3,0.52995096]
[1761558567521,1.2931272,1158.1,1155.8,0.79214784]
[1761558567720,1.2931272,1158.0,1155.9,0.53011831]
[1761558567920,1.2931272,1158.0,1156.0,0.53011831]
[1761558568123,1.2931272,1158.0,1156.1,0.53011831]
[1761558568325,1.2931272,1158.0,1156.2,0.53011831]
[1761558568521,1.2931272,1158.0,1156.3,0.53011831]
[1761558568825,1.2931272,1158.0,1155.8,0.79214784]
[1761558569024,1.2931272,1158.1,1155.9,0.53016779]
[1761558569223,1.2931272,1158.1,1156.0,0.53016779]
[1761558569425,1.2931272,1158.1,1156.1,0.53016779]
[1761558569622,1.2931272,1158.1,1156.2,0.53016779]
[1761558569927,1.2931272,1158.1,1156.3,0.53016779]
[1761558570226,1.2931272,1158.1,1155.8,0.79214784]
[1761558570426,1.2931272,1158.1,1155.9,0.53017931]
[1761558570626,1.2931272,1158.1,1156.0,0.53017931]
[1761558570925,1.2931272,1158.1,1156.1,0.53017931]
[1761558571126,1.2931272,1158.1,1156.2,0.53017931]
[1761558571326,1.2931272,1158.1,1156.3,0.53017931]
[1761558571522,1.2931272,1158.1,1155.8,0.79214784]
[1761558571725,1.2931272,1158.1,1155.9,0.53005638]
[1761558571925,1.2931272,1158.1,1156.0,0.53005638]
[1761558572125,1.2931272,1158.1,1156.1,0.53005638]
[1761558572324,1.2931272,1158.1,1156.2,0.53005638]
[1761558572525,1.2931272,1158.1,1155.8,0.79214784]
[1761558572526,1.2931272,1158.1,1156.3,0.53005638]
[1761558572825,1.2931272,1157.9,1155.8,0.79214784]
[1761558573123,1.2931272,1157.9,1155.9,0.53013375]
[1761558573322,1.2931272,1157.9,1156.0,0.53013375]
[1761558573523,1.2931272,1157.9,1156.1,0.53013375]
[1761558573726,1.2931272,1157.9,1156.2,0.53013375]
[1761558573927,1.2931272,1157.5,1155.8,0.79214784]
[1761558574128,1.2931272,1157.5,1155.9,0.53062147]
[1761558574328,1.2931272,1157.4,1156.0,0.53062147]
[1761558574626,1.2931272,1157.4,1155.8,0.15046404]
[1761558574831,1.2931272,1157.4,1155.9,0.53081234]
[1761558575126,1.2931272,1157.4,1156.0,0.53081234]
[1761558575429,1.2931272,1157.4,1155.8,0.15046404]
[1761558575627,1.2931272,1157.4,1155.9,0.53084971]
[1761558575826,1.2931272,1157.5,1156.0,0.53084971]
[1761558576030,1.2931272,1157.5,1155.8,0.15046404]
[1761558576229,1.2931272,1157.4,1155.9,0.53085016]
[1761558576425,3.0083104,1158.7,1156.0,0.53085016]
[1761558576426,1.2931272,1157.8,1156.0,0.53085016]
[1761558576630,1.2931272,1157.7,1155.8,0.15046404]
[1761558576828,1.2931272,1157.3,1155.8,0.15046404]
[1761558577227,1.2931272,1157.2,1155.3,0.6416838]
[1761558577428,1.2931272,1157.2,1155.5,0.15048681]
[1761558577728,1.2931272,1157.2,1155.6,0.53119733]
[1761558578031,1.2931272,1157.2,1155.7,0.53119733]
[1761558578232,1.2931272,1157.2,1155.5,0.15048681]
[1761558578532,1.2931272,1157.2,1155.6,0.53114414]
[1761558578727,1.2931272,1157.2,1155.5,0.15048681]
[1761558579032,1.2931272,1157.0,1155.5,0.15048681]
[1761558580130,1.2931272,1156.9,1155.0,0.6416838]
[1761558580328,1.2931272,1156.9,1155.1,0.53134144]
[1761558580528,1.2931272,1157.7,1155.5,0.15049853]
[1761558580731,1.2931272,1157.7,1155.6,0.53134144]
[1761558580933,1.2931272,1157.6,1155.7,0.53134144]
[1761558581129,1.2931272,1157.6,1155.5,0.15049853]
[1761558581331,1.2931272,1157.7,1155.6,0.53077231]
[1761558581632,1.2931272,1157.6,1155.7,0.53077231]
[1761558581833,1.2931272,1157.6,1155.5,0.15049853]
[1761558582133,1.2931272,1157.6,1155.6,0.53070223]
[1761558582332,1.2931272,1157.7,1155.5,0.15049853]
[1761558582534,1.2931272,1157.7,1155.6,0.53061527]
[1761558582733,1.2931272,1157.7,1155.7,0.53060746]
[1761558582932,1.2931272,1157.7,1155.5,0.15049853]
[1761558583132,1.2931272,1157.6,1155.6,0.53062128]
[1761558583332,1.2931272,1157.7,1155.5,0.15049853]
[1761558583530,1.2931272,1157.7,1155.6,0.53060604]
[1761558583732,1.2931272,1157.7,1155.5,0.15049853]
[1761558583938,1.2931272,1157.7,1155.6,0.53060637]
[1761558584231,1.2931272,1157.7,1155.5,0.15049853]
[1761558584431,1.2931272,1157.7,1155.6,0.53052902]
[1761558584635,1.2931272,1157.7,1155.5,0.15049853]
[1761558584836,1.2931272,1157.7,1155.6,0.53052904]
[1761558585038,1.2931272,1157.7,1155.5,0.15049853]
[1761558585236,1.2931272,1157.7,1155.6,0.53052919]
[1761558585537,1.2931272,1157.7,1155.5,0.15049853]
[1761558585734,1.2931272,1157.7,1155.6,0.53045593]
[1761558585934,1.2931272,1157.7,1155.5,0.15049853]
[1761558586136,1.2931272,1157.7,1155.6,0.53045626]
[1761558586336,1.2931272,1157.7,1155.5,0.15049853]
[1761558586538,1.2931272,1157.7,1155.6,0.53038669]
[1761558586738,1.2931272,1157.7,1155.5,0.15049853]
[1761558586935,1.2931272,1157.7,1155.6,0.53037033]
[1761558587139,1.2931272,1157.7,1155.5,0.15049853]
[1761558587434,1.2931272,1157.7,1155.6,0.53034984]
[1761558587638,1.2931272,1157.7,1155.5,0.15049853]
[1761558587838,1.2931272,1157.7,1155.6,0.53041879]
[1761558588039,1.2931272,1157.7,1155.5,0.15049853]
[1761558588239,1.2931272,1157.7,1155.6,0.53055967]
[1761558588439,1.2931272,1157.7,1155.5,0.15049853]
[1761558588636,1.2931272,1157.7,1155.6,0.53049843]
[1761558588836,1.2931272,1157.7,1155.5,0.15049853]
[1761558589137,1.2931272,1157.7,1155.6,0.53049907]
[1761558589335,1.2931272,1157.8,1155.5,0.15049853]
[1761558589538,1.2931272,1157.8,1155.6,0.53044142]
[1761558589734,1.2931272,1157.8,1155.5,0.15049853]
[1761558589937,1.2931272,1157.8,1155.6,0.53044142]
[1761558590135,1.2931272,1157.8,1155.5,0.15049853]
[1761558590337,1.2931272,1157.8,1155.6,0.53044172]
[1761558590537,1.2931272,1157.8,1155.5,0.15049853]
[1761558590736,1.2931272,1157.8,1155.6,0.53038766]
[1761558590936,1.2931272,1157.8,1155.5,0.15049853]
[1761558591134,1.2931272,1157.8,1155.6,0.5303881]
[1761558591334,1.2931272,1157.8,1155.5,0.15049853]
[1761558591539,1.2931272,1157.8,1155.6,0.53033781]
[1761558591739,1.2931272,1158.0,1155.7,0.53033001]
[1761558591936,1.2931272,1158.1,1155.8,0.53033001]
[1761558592140,1.2931272,1158.1,1155.5,0.15049853]
[1761558592340,1.2931272,1158.1,1155.6,0.53018257]
[1761558592540,1.2931272,1158.1,1155.7,0.53018257]
[1761558592840,1.2931272,1158.1,1155.8,0.53018257]
[1761558593138,1.2931272,1158.1,1155.5,0.15049853]
[1761558593336,1.2931272,1158.1,1155.6,0.53016229]
[1761558593539,1.2931272,1158.1,1155.7,0.53016229]
[1761558593740,1.2931272,1158.1,1155.8,0.53016229]
[1761558594037,1.2931272,1158.0,1155.5,0.15049853]
[1761558594241,1.2931272,1158.1,1155.6,0.53016179]
[1761558594441,1.2931272,1158.0,1155.7,0.53016179]
[1761558594636,1.2931272,1158.0,1155.5,0.15049853]
[1761558594838,1.2931272,1158.0,1155.6,0.53015621]
[1761558595136,1.2931272,1158.0,1155.7,0.53015621]
[1761558595436,1.2931272,1157.9,1155.5,0.15049853]
[1761558595740,1.2931272,1157.9,1155.6,0.53026789]
[1761558595940,1.2931272,1157.8,1155.7,0.53026789]
[1761558596135,1.2931272,1157.8,1155.5,0.15049853]
[1761558596336,1.2931272,1157.6,1155.6,0.53023757]
[1761558596539,1.2931272,1157.6,1155.7,0.53023757]
[1761558596840,1.2931272,1157.5,1155.5,0.15049853]
[1761558597038,1.2931272,1157.6,1155.6,0.53020152]
[1761558597340,1.2931272,1157.6,1155.7,0.53020152]
[1761558597637,1.2931272,1157.6,1155.5,0.15049853]
[1761558597836,1.2931272,1157.6,1155.6,0.53021373]
[1761558598041,1.2931272,1157.7,1155.7,0.53021373]
[1761558598240,1.2931272,1157.7,1155.8,0.53021373]
[1761558598440,1.2931272,1157.7,1155.5,0.15049853]
[1761558598642,1.2931272,1157.7,1155.6,0.53017781]
[1761558598842,1.2931272,1157.7,1155.7,0.53017781]
[1761558599040,1.2931272,1157.7,1155.8,0.53017781]
[1761558599241,1.2931272,1157.6,1155.5,0.15049853]
[1761558599438,1.2931272,1157.5,1155.6,0.53026311]
[1761558599642,1.2931272,1157.5,1155.7,0.53026311]
[1761558599839,1.2931272,1157.5,1155.8,0.53026311]
[1761558600041,1.2931272,1157.5,1155.9,0.53026311]
[1761558600244,1.2931272,1157.5,1155.5,0.78999906]
[1761558600444,1.2931272,1157.5,1155.6,0.53012833]
[1761558600640,1.2931272,1157.5,1155.7,0.53012833]
[1761558600841,1.2931272,1157.5,1155.8,0.53012833]
[1761558601144,1.2931272,1157.5,1155.5,0.78999906]
[1761558601444,1.2931272,1157.5,1155.6,0.53006329]
[1761558601641,1.2931272,1157.7,1155.7,0.53006329]
[1761558601944,1.2931272,1157.6,1155.8,0.53006329]
[1761558602139,1.2931272,1157.6,1155.5,0.15049853]
[1761558602440,1.2931272,1157.6,1155.6,0.52964211]
[1761558602639,1.2931272,1157.6,1155.7,0.52964211]
[1761558602839,1.2931272,1157.6,1155.8,0.52964211]
[1761558603043,1.2931272,1157.6,1155.5,0.15049853]
[1761558603241,1.2931272,1157.4,1155.6,0.52971798]
[1761558603440,1.2931272,1157.4,1155.7,0.52971798]
[1761558603641,1.2931272,1157.4,1155.5,0.15049853]
[1761558603843,1.2931272,1157.4,1155.6,0.52979069]
[1761558604039,1.2931272,1157.5,1155.7,0.52979069]
[1761558604344,1.2931272,1157.5,1155.8,0.52979069]
[1761558604641,1.2931272,1157.4,1155.5,0.15049853]
[1761558604842,1.2931272,1157.3,1155.6,0.52943047]
[1761558605142,1.2931272,1157.2,1155.5,0.15049853]
[1761558605644,1.2931272,1157.5,1155.5,0.15049853]
[1761558609142,1.2931272,1157.4,1155.5,0.15049853]
[1761558609346,1.2931272,1157.2,1155.5,0.15049853]
[1761558609645,1.2931272,1157.0,1155.0,0.63950053]
[1761558609842,1.2931272,1157.0,1155.1,0.5296397]
[1761558610045,1.2931272,1157.0,1155.3,0.15052196]
[1761558613949,1.2931272,1157.1,1155.3,0.15052196]
[1761558614445,1.2931272,1157.0,1154.8,0.63950053]
[1761558614649,2.1487932,1157.7,1155.1,0.15053694]
[1761558614848,1.2931272,1157.8,1155.2,0.52910658]
[1761558615248,1.2931272,1157.5,1155.1,0.15053694]
[1761558615448,1.2931272,1157.4,1155.1,0.15053694]
[1761558617452,1.2931272,1157.2,1155.1,0.15053694]
[1761558618254,1.2931272,1156.9,1155.1,0.15053694]
[1761558619353,2.1487932,1157.6,1154.0,0.63950053]
[1761558619555,1.2931272,1157.8,1154.7,0.15057732]
[1761558619851,1.2931272,1157.8,1154.8,0.52928654]
[1761558620050,1.2931272,1157.8,1154.9,0.52928654]
[1761558620248,1.2931272,1157.8,1154.7,0.15057732]
[1761558620448,1.2931272,1157.8,1154.8,0.52913587]
[1761558620653,1.2931272,1157.8,1154.9,0.52913587]
[1761558620853,1.2931272,1157.8,1154.7,0.15057732]
[1761558621049,1.2931272,1157.8,1154.8,0.52913565]
[1761558621252,1.2931272,1157.8,1154.9,0.52913565]
[1761558621452,1.2931272,1157.8,1154.7,0.15057732]
[1761558621654,1.2931272,1157.8,1154.8,0.52900162]
[1761558621853,1.2931272,1157.8,1154.7,0.15057732]
[1761558621854,1.2931272,1157.8,1154.9,0.52900162]
[1761558622055,1.2931272,1157.8,1154.7,0.15057732]
[1761558622256,1.2931272,1157.8,1154.8,0.52887484]
[1761558622455,1.2931272,1157.8,1154.9,0.52887484]
[1761558622653,1.2931272,1157.8,1154.7,0.15057732]
[1761558622854,1.2931272,1157.8,1154.8,0.52879286]
[1761558623052,1.2931272,1157.8,1154.9,0.52879286]
[1761558623257,1.2931272,1157.9,1154.7,0.15057732]
[1761558623559,1.2931272,1157.8,1154.8,0.52872043]
[1761558623755,1.2931272,1157.4,1154.7,0.15057732]
[1761558623957,1.2931272,1157.3,1154.7,0.15057732]
[1761558627160,1.2931272,1157.2,1154.7,0.15057732]
[1761558627565,1.2931272,1157.0,1154.7,0.15057732]
[1761558628362,1.2931272,1157.1,1154.7,0.15057732]
[1761558630365,1.2931272,1157.1,1154.8,0.52817376]
[1761558630567,1.2931272,1157.0,1154.7,0.15057732]
[1761558631465,1.2931272,1156.9,1154.7,0.15057732]
[1761558632965,1.2931272,1156.7,1154.7,0.15057732]
[1761558633165,1.2931272,1156.6,1154.7,0.15057732]
[1761558633464,1.2931272,1156.5,1154.7,0.15057732]
[1761558633666,1.2931272,1156.4,1154.7,0.15057732]
[1761558633868,1.2931272,1156.6,1154.7,0.15057732]
[1761558635366,1.2931272,1156.7,1154.7,0.15057732]
[1761558636169,1.2931272,1156.6,1154.7,0.15057732]
[1761558636466,1.2931272,1156.7,1154.7,0.15057732]
[1761558637170,1.2931272,1156.8,1154.7,0.15057732]
[1761558638268,1.2931272,1156.9,1154.7,0.15057732]
[1761558638766,1.2931272,1157.0,1154.7,0.15057732]
[1761558640865,1.2931272,1157.1,1154.7,0.15057732]
[1761558642169,1.2931272,1157.0,1154.7,0.15057732]
[1761558642469,1.2931272,1157.2,1154.8,0.52661835]
[1761558642672,1.2931272,1157.2,1154.9,0.52661835]
[1761558642967,1.2931272,1157.3,1154.7,0.15057732]
[1761558643172,1.2931272,1157.9,1154.8,0.52659712]
[1761558643374,1.2931272,1157.8,1154.9,0.52659712]
[1761558643568,1.2931272,1157.8,1155.0,0.52659712]
[1761558643870,1.2931272,1157.8,1154.7,0.15057732]
[1761558644067,1.2931272,1157.8,1154.8,0.5266662]
[1761558644267,1.2931272,1157.8,1154.9,0.5266662]
[1761558644469,1.2931272,1157.8,1155.0,0.5266662]
[1761558644668,1.2931272,1157.8,1154.7,0.15057732]
[1761558644972,1.2931272,1157.8,1154.8,0.52668369]
[1761558645172,1.2931272,1157.8,1154.9,0.52668369]
[1761558645372,1.2931272,1157.8,1155.0,0.52668369]
[1761558645569,1.2931272,1157.1,1154.7,0.15057732]
[1761558645868,1.2931272,1157.2,1154.8,0.52652321]
[1761558646170,1.2931272,1157.2,1154.9,0.52652321]
[1761558646368,1.2931272,1157.2,1155.0,0.52652321]
[1761558646572,1.2931272,1157.4,1155.1,0.52652321]
[1761558646770,1.2931272,1157.4,1155.2,0.52652321]
[1761558646973,1.2931272,1157.4,1155.3,0.52652321]
[1761558647276,1.2931272,1157.4,1154.9,0.63716099]
[1761558647472,1.2931272,1157.4,1155.0,0.52627068]
[1761558647672,1.2931272,1157.4,1155.1,0.52627068]
[1761558647876,1.2931272,1157.4,1155.2,0.52627068]
[1761558648076,1.2931272,1157.4,1154.9,0.63716099]
[1761558648274,1.2931272,1157.4,1155.0,0.52627022]
[1761558648577,1.2931272,1157.6,1155.1,0.52627022]
[1761558648778,1.2931272,1157.6,1155.2,0.52627022]
[1761558648978,1.2931272,1157.7,1155.3,0.52627022]
[1761558649173,1.2931272,1157.7,1154.8,0.63716099]
[1761558649373,1.2931272,1157.7,1154.9,0.526287]
[1761558649575,1.2931272,1157.7,1155.0,0.526287]
[1761558649879,1.2931272,1157.7,1155.1,0.526287]
[1761558650076,1.2931272,1157.7,1155.2,0.526287]
[1761558650374,1.2931272,1157.7,1155.3,0.526287]
[1761558650578,1.2931272,1157.7,1154.8,0.63716099]
[1761558650774,1.2931272,1157.6,1154.9,0.5262812]
[1761558650974,1.2931272,1157.6,1155.0,0.5262812]
[1761558651175,1.2931272,1157.6,1155.1,0.5262812]
[1761558651376,1.2931272,1157.6,1155.2,0.5262812]
[1761558651577,1.2931272,1157.6,1155.3,0.5262812]
[1761558651780,1.2931272,1157.6,1154.9,0.63716099]
[1761558651980,1.2931272,1157.6,1155.0,0.52620066]
[1761558652181,1.2931272,1157.6,1155.1,0.52620066]
[1761558652381,1.2931272,1157.5,1155.2,0.52620066]
[1761558652577,1.2931272,1157.5,1155.3,0.52620066]
[1761558652882,1.2931272,1157.5,1154.9,0.63716099]
[1761558653083,1.2931272,1157.5,1155.0,0.52626429]
[1761558653281,1.2931272,1157.5,1155.1,0.52626429]
[1761558653578,1.2931272,1157.6,1155.2,0.52626429]
[1761558653777,1.2931272,1157.6,1155.3,0.52626429]
[1761558653979,1.2931272,1157.7,1154.8,0.63716099]
[1761558654182,1.2931272,1157.7,1154.9,0.52616976]
[1761558654382,1.2931272,1157.6,1155.0,0.52616976]
[1761558654580,1.2931272,1157.6,1155.1,0.52616976]
[1761558654881,1.2931272,1157.6,1155.2,0.52616976]
[1761558655079,1.2931272,1157.6,1155.3,0.52616976]
[1761558655279,1.2931272,1157.8,1155.4,0.52616976]
[1761558655483,1.2931272,1157.8,1154.8,0.63716099]
[1761558655678,1.2931272,1157.9,1154.9,0.52632982]
[1761558655882,1.2931272,1157.5,1155.0,0.52632982]
[1761558656079,1.2931272,1157.5,1155.1,0.52632982]
[1761558656282,1.2931272,1157.5,1155.2,0.52632982]
[1761558656479,1.2931272,1157.5,1155.3,0.52632982]
[1761558656779,1.2931272,1157.2,1154.9,0.63716099]
[1761558656983,1.2931272,1157.2,1155.0,0.52665082]
[1761558657183,1.2931272,1157.1,1155.1,0.52665082]
[1761558657383,1.2931272,1157.1,1154.8,0.63716099]
[1761558657583,1.2931272,1157.1,1154.9,0.52689858]
[1761558657779,1.2931272,1157.1,1155.0,0.52689858]
[1761558657983,1.2931272,1157.1,1155.1,0.52689858]
[1761558658185,1.2931272,1157.1,1154.8,0.63716099]
[1761558658383,1.2931272,1157.1,1154.9,0.52696052]
[1761558658583,1.2931272,1157.1,1155.0,0.52696052]
[1761558658784,1.2931272,1157.0,1155.1,0.52696052]
[1761558658981,1.2931272,1157.0,1154.7,0.78773831]
[1761558659284,1.2931272,1157.0,1154.8,0.52703506]
[1761558659584,1.2931272,1157.0,1154.9,0.52703506]
[1761558659781,1.2931272,1157.0,1155.0,0.52703506]
[1761558659985,1.2931272,1157.0,1155.1,0.52703506]
[1761558660183,1.2931272,1157.0,1154.8,0.63716099]
[1761558660381,1.2931272,1157.1,1154.9,0.52703971]
[1761558660584,1.2931272,1157.1,1155.0,0.52703971]
[1761558660882,1.2931272,1157.2,1155.1,0.52703971]
[1761558661185,1.2931272,1157.3,1155.2,0.52703971]
[1761558661485,1.2931272,1157.3,1154.8,0.63716099]
[1761558661686,1.2931272,1157.3,1154.9,0.52720109]
[1761558661886,1.2931272,1157.3,1155.0,0.52720109]
[1761558662086,1.2931272,1157.3,1155.1,0.52720109]
[1761558662284,1.2931272,1157.3,1155.2,0.52720109]
[1761558662583,1.2931272,1157.3,1154.7,0.78773831]
[1761558662788,1.2931272,1157.4,1154.8,0.52661134]
[1761558662988,1.2931272,1157.4,1154.9,0.52661134]
[1761558663188,1.2931272,1157.3,1155.0,0.52661134]
[1761558663386,1.2931272,1157.3,1155.1,0.52661134]
[1761558663585,1.2931272,1157.3,1155.2,0.52661134]
[1761558663889,1.2931272,1157.1,1154.7,0.78773831]
[1761558664090,1.2931272,1157.2,1154.8,0.52758416]
[1761558664389,1.2931272,1157.2,1154.9,0.52758416]
[1761558664589,1.2931272,1157.2,1155.0,0.52758416]
[1761558664891,1.2931272,1157.1,1155.1,0.52758416]
[1761558665088,1.2931272,1156.9,1155.2,0.52758416]
[1761558665288,1.2931272,1156.9,1154.9,0.63716099]
[1761558665490,1.2931272,1157.0,1155.0,0.52781782]
[1761558665790,1.2931272,1157.0,1155.1,0.52781782]
[1761558666090,2.1487932,1157.8,1155.2,0.52781782]
[1761558666390,1.2931272,1157.5,1155.3,0.52781782]
[1761558666591,1.2931272,1157.4,1155.4,0.52781782]
[1761558666786,1.2931272,1157.5,1155.5,0.52781782]
[1761558666986,1.2931272,1157.5,1155.6,0.52781782]
[1761558667186,1.2931272,1157.5,1155.2,0.63716099]
[1761558667392,1.2931272,1157.5,1155.3,1.16439957]
[1761558667687,1.2931272,1157.5,1155.4,0.52723858]
[1761558667885,1.2931272,1157.5,1155.5,0.52723858]
[1761558668095,1.2931272,1157.5,1155.6,0.52723858]
[1761558668289,1.2931272,1157.6,1155.7,0.52723858]
[1761558668587,1.2931272,1157.5,1155.3,0.63716099]
[1761558668788,1.2931272,1157.5,1155.4,0.52716966]
[1761558668989,1.2931272,1157.5,1155.5,0.52716966]
[1761558669193,1.2931272,1157.6,1155.6,0.52716966]
[1761558669387,1.2931272,1157.6,1155.7,0.52716966]
[1761558669686,1.2931272,1157.6,1155.3,0.63716099]
[1761558669990,1.2931272,1157.6,1155.4,0.527079]
[1761558670192,1.2931272,1157.6,1155.5,0.527079]
[1761558670393,1.2931272,1157.6,1155.6,0.527079]
[1761558670593,1.2931272,1157.6,1155.7,0.527079]
[1761558670794,1.2931272,1157.5,1155.2,0.63716099]
[1761558670994,1.2931272,1157.4,1155.3,1.16418695]
[1761558671194,1.2931272,1157.4,1155.4,0.52702596]
[1761558672595,1.2931272,1157.5,1155.5,0.52702596]
[1761558672992,1.2931272,1157.5,1155.6,0.52727644]
[1761558673191,1.2931272,1157.5,1155.7,0.52727644]
[1761558673391,1.2931272,1157.5,1155.4,0.63600865]
[1761558673594,1.2931272,1157.7,1155.5,1.16302757]
[1761558673791,1.2931272,1157.7,1155.6,1.16302757]
[1761558673995,1.2931272,1157.6,1155.7,0.52701892]
[1761558674192,1.2931272,1157.7,1155.8,0.52701892]
[1761558674396,1.2931272,1157.8,1155.4,0.63600865]
[1761558674696,1.2931272,1157.8,1155.5,1.16257253]
[1761558674896,1.2931272,1158.0,1155.6,0.52656388]
[1761558675194,1.2931272,1158.0,1155.7,0.52656388]
[1761558675392,1.2931272,1158.0,1155.8,0.52656388]
[1761558675593,1.2931272,1158.0,1155.9,0.52656388]
[1761558675792,1.2931272,1157.9,1155.5,0.63600865]
[1761558675996,1.2931272,1157.8,1155.6,0.52614348]
[1761558676197,1.2931272,1157.8,1155.7,0.52614348]
[1761558676397,1.2931272,1157.8,1155.8,0.52614348]
[1761558676595,1.2931272,1157.8,1155.5,0.63600865]
[1761558676799,1.2931272,1157.7,1155.6,0.52601838]
[1761558676999,1.2931272,1157.7,1155.7,0.52601838]
[1761558677299,1.2931272,1157.8,1155.4,0.63600865]
[1761558677496,1.2931272,1157.8,1155.5,0.52590789]
[1761558677800,1.2931272,1157.8,1155.6,0.52590789]
[1761558677999,1.2931272,1157.7,1155.7,0.52590789]
[1761558678297,1.2931272,1157.8,1155.4,0.63600865]
[1761558678495,1.2931272,1157.8,1155.5,0.52580907]
[1761558678696,1.2931272,1157.8,1155.6,0.52580907]
[1761558678899,1.2931272,1157.7,1155.7,0.52580907]
[1761558679197,1.2931272,1157.7,1155.3,0.63600865]
[1761558679400,1.2931272,1157.8,1155.4,0.52573214]
[1761558679600,1.2931272,1157.8,1155.5,0.52573214]